bitfinex/quotes_ETHUSD_20240821
["timestamp","ask_amount","ask_price","bid_price","bid_amount"]
[1724207550815,0.40557315,2596.1,2595.7,0.55]
[1724207551050,0.5522744,2596.1,2595.7,0.55]
[1724207551249,0.40557315,2596.1,2595.7,0.55]
[1724207552353,2.38473148,2596.2,2595.7,0.55]
[1724207553983,2.38473148,2596.2,2595.5,0.55]
[1724207554143,2.3077,2596.2,2595.5,0.55]
[1724207556083,2.38473148,2596.2,2595.5,0.55]
[1724207557568,2.3077,2596.2,2595.6,1.671]
[1724207557770,0.14670125,2596.1,2595.7,0.55]
[1724207557972,2.3077,2596.2,2595.7,0.55]
[1724207558278,0.14670125,2596.1,2595.7,0.55]
[1724207558644,2.3077,2596.2,2595.7,0.55]
[1724207559043,0.14626349,2596.1,2595.7,0.55]
[1724207559488,2.3077,2596.2,2595.7,0.55]
[1724207559845,0.14626349,2596.1,2595.7,0.55]
[1724207560242,0.07703148,2596.1,2595.7,0.55]
[1724207560448,2.345,2596.0,2595.5,0.55]
[1724207560875,0.14626349,2595.9,2595.5,0.55]
[1724207561079,0.14626349,2595.9,2595.4,8.9795314]
[1724207561080,2.3312,2596.0,2595.4,7.3085314]
[1724207561263,2.3312,2595.7,2595.4,7.3085314]
[1724207561756,2.3312,2595.4,2594.7,1.671]
[1724207562019,2.3312,2595.2,2594.6,7.3085314]
[1724207562172,2.40823148,2595.2,2594.6,7.3085314]
[1724207562517,2.3312,2595.2,2594.6,7.3085314]
[1724207562853,0.14518339,2595.1,2594.6,7.3085314]
[1724207563052,0.14518339,2595.1,2594.6,8.20648454]
[1724207563305,2.3312,2595.2,2594.7,1.671]
[1724207564478,2.3312,2595.2,2594.6,8.20648454]
[1724207564677,2.3144,2595.8,2594.7,2.2748]
[1724207564862,2.3144,2595.8,2594.8,0.55]
[1724207565067,2.99102339,2595.7,2594.8,1.63278577]
[1724207565272,2.45958339,2595.7,2594.8,1.63278577]
[1724207577642,2.4749,2595.5,2594.8,1.63278577]
[1724207577814,2.4749,2595.5,2594.8,0.55]
[1724207578131,2.61935346,2595.4,2594.7,0.55]
[1724207581534,0.07703148,2595.3,2594.7,0.55]
[1724207581834,2.4426,2595.2,2594.7,0.55]
[1724207584524,2.4426,2595.2,2594.8,1.672]
[1724207584745,2.4426,2595.2,2594.8,2.62505314]
[1724207589625,0.14414191,2595.1,2594.8,1.672]
[1724207593161,0.14414191,2595.1,2594.9,0.55]
[1724207593321,0.14414191,2595.1,2595.0,1.672]
[1724207593517,0.14414191,2595.1,2595.0,2.222]
[1724207593717,2.4349,2595.4,2595.0,2.222]
[1724207593956,0.14414191,2595.1,2595.0,2.222]
[1724207594126,2.4349,2595.4,2595.0,2.4442]
[1724207594322,0.14414191,2595.1,2595.0,3.0884]
[1724207594551,9.5759,2595.7,2595.0,4.7604]
[1724207594871,9.5759,2595.7,2595.1,0.55]
[1724207595035,0.14430744,2595.6,2595.2,2.03584]
[1724207595242,0.14430744,2595.6,2595.3,0.55]
[1724207595915,2.3059,2595.7,2595.3,0.55]
[1724207596764,0.14430744,2595.6,2595.3,0.55]
[1724207597172,2.3059,2595.7,2595.3,0.55]
[1724207597358,2.3059,2595.7,2595.4,0.258584]
[1724207597553,2.3059,2595.7,2595.5,0.55]
[1724207597760,0.14430744,2595.6,2595.5,0.55]
[1724207599326,2.4344,2595.9,2595.5,0.55]
[1724207599527,0.14430744,2595.6,2595.5,0.55]
[1724207599859,0.14430744,2595.6,2595.2,2.03584]
[1724207600069,2.4344,2595.9,2595.3,0.203584]
[1724207600378,2.4344,2595.9,2595.4,1.672]
[1724207600519,0.14475519,2595.8,2595.4,1.672]
[1724207601280,0.14475519,2595.8,2595.6,1.672]
[1724207602076,0.14476492,2595.7,2595.6,1.672]
[1724207602527,2.4344,2596.1,2595.6,1.672]
[1724207602873,0.14476492,2596.0,2595.6,1.672]
[1724207608650,2.3259,2595.9,2595.3,7.5121154]
[1724207608891,2.3259,2595.9,2595.3,7.3085314]
[1724207608892,2.3259,2595.6,2595.3,7.3085314]
[1724207609390,2.2529,2595.4,2595.3,7.3085314]
[1724207609744,2.39845329,2595.4,2595.3,7.3085314]
[1724207609935,2.39845329,2595.4,2594.6,1.672]
[1724207610135,2.39845329,2595.4,2594.7,0.9408]
[1724207610327,2.39845329,2595.4,2594.8,1.672]
[1724207615654,2.39845329,2595.4,2594.8,1.67091947]
[1724207641680,2.39845329,2595.4,2595.0,1.672]
[1724207641827,2.39845329,2595.4,2595.2,1.672]
[1724207642233,2.39845329,2595.4,2595.0,1.672]
[1724207643048,2.39845329,2595.4,2594.9,0.24522]
[1724207643282,2.39845329,2595.4,2594.6,2.4522]
[1724207643283,2.39845329,2595.4,2594.7,3.0]
[1724207643720,2.39845329,2595.4,2594.6,4.672]
[1724207643879,2.4666,2595.3,2594.6,1.672]
[1724207644227,2.4666,2595.1,2594.6,1.672]
[1724207646407,2.4666,2595.1,2594.8,1.672]
[1724207648375,2.2538,2595.7,2594.8,1.672]
[1724207648579,2.2538,2595.7,2594.4,7.3085314]
[1724207648580,2.64638,2595.6,2595.0,1.672]
[1724207648779,2.79086265,2595.6,2595.0,1.672]
[1724207650060,4.46286265,2595.6,2594.8,1.672]
[1724207650366,2.2538,2595.4,2594.6,1.672]
[1724207651032,2.3157,2595.2,2594.6,1.672]
[1724207651618,0.14448265,2595.1,2594.6,1.672]
[1724207652401,0.14448265,2595.1,2594.6,2.57005314]
[1724207656263,0.14448265,2595.1,2594.8,1.672]
[1724207657171,0.14448265,2595.1,2595.0,1.672]
[1724207659212,2.4706,2595.4,2595.0,1.672]
[1724207659622,0.14458002,2595.3,2595.0,1.672]
[1724207660557,2.2857,2595.2,2594.8,1.672]
[1724207660709,2.2857,2595.2,2594.9,0.4672]
[1724207660916,0.14467737,2595.1,2594.9,0.4672]
[1724207661413,2.2642,2595.0,2594.6,0.89805314]
[1724207661655,2.2642,2595.0,2594.5,4.672]
[1724207662256,0.14467737,2594.9,2594.5,4.672]
[1724207662598,2.2642,2595.0,2594.5,4.672]
[1724207664267,2.2642,2595.0,2594.7,1.672]
[1724207664567,2.2642,2595.0,2594.5,3.0]
[1724207664568,2.3234,2595.4,2594.9,1.672]
[1724207664991,0.14467737,2595.3,2594.9,1.672]
[1724207668172,0.14467737,2595.3,2595.1,1.672]
[1724207668530,2.83544884,2595.8,2595.2,2.3316]
[1724207668673,0.14466763,2595.7,2595.6,1.672]
[1724207668867,2.2784,2595.9,2595.6,1.672]
[1724207669088,0.14466763,2595.8,2595.6,1.672]
[1724207671313,0.14466763,2595.7,2595.6,1.672]
[1724207671524,2.3949,2596.2,2595.6,1.672]
[1724207671691,0.14466763,2596.1,2595.6,1.672]
[1724207675398,0.14466763,2596.1,2595.7,0.07703867]
[1724207676393,0.14466763,2596.1,2595.6,1.672]
[1724207676719,0.14466763,2596.1,2595.8,1.672]
[1724207676921,2.3949,2596.4,2595.8,2.07839]
[1724207677086,0.145378,2596.3,2595.8,2.07839]
[1724207677818,2.3949,2596.4,2595.8,2.07839]
[1724207678119,0.145378,2596.3,2595.8,2.07839]
[1724207678315,2.3949,2596.4,2595.8,1.672]
[1724207678528,0.145378,2596.3,2595.8,1.672]
[1724207679170,2.3949,2596.4,2595.8,1.672]
[1724207679508,0.145378,2596.3,2595.8,1.672]
[1724207679817,2.3949,2596.4,2595.8,1.672]
[1724207680119,0.145378,2596.3,2595.9,0.4672]
[1724207680416,2.3949,2596.4,2595.9,0.4672]
[1724207680773,0.145378,2596.3,2595.9,0.4672]
[1724207681214,2.3285,2596.6,2596.2,1.672]
[1724207681612,0.145378,2596.5,2596.2,1.672]
[1724207682042,2.3285,2596.6,2596.2,2.07474]
[1724207682250,2.3285,2596.8,2596.4,1.672]
[1724207682645,0.145378,2596.7,2596.4,1.672]
[1724207682969,2.3285,2596.8,2596.2,1.672]
[1724207683115,0.145378,2596.6,2596.0,1.672]
[1724207683514,4.0005,2596.8,2596.0,1.672]
[1724207683714,0.14687631,2596.7,2596.0,1.672]
[1724207684425,2.3285,2596.6,2596.0,1.672]
[1724207685051,0.14687631,2596.5,2596.0,1.672]
[1724207685359,0.14687631,2596.4,2596.1,0.94477314]
[1724207685658,2.3285,2596.6,2596.1,0.94477314]
[1724207687630,0.14687631,2596.5,2596.1,0.94477314]
[1724207687876,2.3285,2596.6,2596.1,0.94477314]
[1724207689228,2.3285,2596.6,2596.0,1.672]
[1724207689630,0.14687631,2596.5,2596.0,1.672]
[1724207690627,2.3871,2596.4,2595.9,7.7757314]
[1724207691127,0.14687631,2596.5,2595.7,3.0]
[1724207691128,2.53397631,2596.3,2595.7,3.0]
[1724207691545,2.53397631,2596.3,2595.8,1.672]
[1724207693067,0.14687631,2596.3,2596.0,1.672]
[1724207693566,2.3871,2596.5,2596.0,1.672]
[1724207693567,0.14627324,2596.2,2596.0,1.672]
[1724207693774,2.3871,2596.5,2596.0,2.0668]
[1724207693973,2.3871,2596.5,2596.2,1.672]
[1724207694135,0.14637052,2596.4,2596.2,1.672]
[1724207698696,2.3871,2596.8,2596.2,1.672]
[1724207699150,0.14637052,2596.7,2596.2,1.672]
[1724207701092,0.14637052,2596.7,2596.4,1.672]
[1724207701505,2.3871,2596.8,2596.4,1.672]
[1724207701667,0.14637052,2596.6,2596.4,1.672]
[1724207701866,2.3871,2596.8,2596.0,8.9805314]
[1724207702079,2.3871,2596.4,2596.0,7.3085314]
[1724207702405,2.3871,2596.4,2596.0,8.81298454]
[1724207703270,2.3871,2596.4,2596.0,7.3085314]
[1724207704889,2.3871,2596.4,2595.8,7.736]
[1724207705231,0.14668175,2596.3,2595.8,7.736]
[1724207707189,0.14668175,2596.3,2595.8,10.0889]
[1724207708021,2.3798,2596.6,2595.8,10.0889]
[1724207708188,0.14662341,2596.2,2595.9,1.30889]
[1724207708525,2.3798,2596.6,2595.9,1.30889]
[1724207709019,2.3798,2596.6,2595.8,7.736]
[1724207709429,0.14662341,2596.5,2595.8,7.736]
[1724207710278,0.14662341,2596.5,2595.9,2.455]
[1724207711221,0.14662341,2596.5,2595.9,6.464]
[1724207712338,2.4063,2596.8,2595.9,6.464]
[1724207712497,0.14659423,2596.7,2596.0,1.42]
[1724207717641,2.4063,2596.8,2596.0,1.42]
[1724207718837,2.4063,2596.8,2596.0,4.49701616]
[1724207719910,2.4063,2596.8,2596.0,4.42]
[1724207720160,2.4063,2596.8,2596.1,1.0884]
[1724207720467,0.14659423,2596.7,2596.1,4.0884]
[1724207720845,2.4063,2596.8,2596.1,4.0884]
[1724207721360,2.307,2596.6,2596.1,4.0884]
[1724207721570,2.307,2596.6,2596.1,3.0]
[1724207721910,2.307,2596.6,2596.0,1.42]
[1724207724449,2.307,2596.6,2596.2,1.67]
[1724207724766,2.307,2596.6,2596.0,1.42]
[1724207724767,2.307,2596.6,2596.4,1.67]
[1724207726465,2.307,2596.6,2596.1,3.0]
[1724207726767,2.307,2596.6,2596.0,1.42]
[1724207726768,2.307,2596.6,2596.2,2.112]
[1724207727074,2.307,2596.6,2595.9,3.0]
[1724207727655,2.5612306,2596.5,2595.9,4.67]
[1724207728016,2.5612306,2596.5,2595.9,3.0]
[1724207728360,2.5612306,2596.5,2596.0,1.67]
[1724207728565,2.5612306,2596.5,2595.9,3.0]
[1724207728768,2.4138,2596.5,2596.0,0.79948442]
[1724207729620,0.1474306,2596.4,2596.0,0.79948442]
[1724207730363,2.3587,2596.3,2596.0,0.79948442]
[1724207730873,0.1474306,2596.2,2596.0,0.79948442]
[1724207731165,2.3587,2596.3,2596.0,0.79948442]
[1724207731379,0.1474306,2596.2,2596.0,0.79948442]
[1724207731685,2.3587,2596.3,2596.0,0.79948442]
[1724207731891,2.3587,2596.3,2596.1,0.37994844]
[1724207732180,0.1474306,2596.2,2596.0,0.79948442]
[1724207732383,2.3587,2596.3,2596.0,0.79948442]
[1724207732546,0.14730417,2596.2,2596.0,0.79948442]
[1724207732751,2.3587,2596.3,2596.0,0.79948442]
[1724207732950,0.14730417,2596.2,2596.1,0.37994844]
[1724207733148,2.3587,2596.3,2596.1,0.37994844]
[1724207733329,0.14730417,2596.2,2596.1,0.37994844]
[1724207733533,2.3587,2596.3,2596.1,0.37994844]
[1724207733749,0.14730417,2596.2,2596.1,0.37994844]
[1724207733954,2.3587,2596.3,2596.1,0.37994844]
[1724207734155,0.1470319,2596.2,2596.1,0.37994844]
[1724207734355,2.3587,2596.3,2596.1,0.37994844]
[1724207734559,0.1470319,2596.2,2596.1,0.37994844]
[1724207734753,2.3587,2596.3,2596.1,0.37994844]
[1724207734988,0.1470319,2596.2,2596.1,0.37994844]
[1724207735188,2.3587,2596.3,2596.1,0.37994844]
[1724207735343,0.1470319,2596.2,2596.1,0.37994844]
[1724207735676,2.3587,2596.3,2596.1,0.37994844]
[1724207736041,0.1470319,2596.2,2596.1,0.37994844]
[1724207736546,2.3587,2596.3,2596.1,0.37994844]
[1724207736745,0.14709025,2596.2,2596.1,0.37994844]
[1724207736990,2.3587,2596.3,2596.1,0.37994844]
[1724207737166,0.14709025,2596.2,2596.1,0.37994844]
[1724207737551,7.27,2597.0,2596.1,0.37994844]
[1724207737552,2.427,2596.6,2596.1,0.37994844]
[1724207737907,0.14701245,2596.5,2596.1,0.37994844]
[1724207741371,2.4078,2596.8,2596.2,2.4016]
[1724207741675,0.14712915,2596.7,2596.3,0.27815484]
[1724207742202,0.14712915,2596.6,2596.3,0.27815484]
[1724207742530,2.4078,2596.8,2596.3,0.27815484]
[1724207742819,0.14712915,2596.7,2596.3,0.27815484]
[1724207743177,2.4078,2596.8,2596.3,0.27815484]
[1724207743520,0.14712915,2596.7,2596.1,0.37994844]
[1724207743722,0.14712915,2596.7,2596.1,3.37994844]
[1724207747386,2.4078,2596.8,2596.1,3.37994844]
[1724207749688,2.4078,2596.8,2596.1,0.37994844]
[1724207749928,2.4078,2596.8,2595.9,3.0]
[1724207750146,2.255,2596.6,2595.9,3.0]
[1724207750735,2.255,2596.6,2596.1,1.67]
[1724207752483,2.255,2596.6,2595.9,3.0]
[1724207752685,2.255,2596.6,2596.0,1.80445314]
[1724207753300,2.2683,2596.4,2596.0,1.80445314]
[1724207753498,2.2683,2596.4,2595.9,3.0]
[1724207762036,2.2683,2596.4,2595.9,5.4205]
[1724207762932,2.2683,2596.4,2595.9,3.0]
[1724207763603,2.2683,2596.4,2595.9,5.4205]
[1724207764661,2.3024,2597.1,2595.9,5.4205]
[1724207764861,2.3024,2596.9,2596.0,2.44730314]
[1724207765481,0.14709026,2596.8,2596.0,2.44730314]
[1724207766186,2.3024,2596.9,2596.0,2.44730314]
[1724207766483,0.14709026,2596.8,2596.0,2.44730314]
[1724207766833,2.3024,2596.9,2596.0,2.44730314]
[1724207767043,2.3024,2596.9,2596.1,0.78678031]
[1724207767335,0.14709026,2596.8,2596.1,3.78678031]
[1724207767998,2.3024,2596.9,2596.1,3.78678031]
[1724207768216,0.14709026,2596.8,2596.1,3.78678031]
[1724207768428,2.3024,2596.9,2596.2,0.62340834]
[1724207768931,0.14709026,2596.8,2596.2,0.62340834]
[1724207769430,2.3024,2596.9,2596.2,0.62340834]
[1724207769431,0.14709026,2596.7,2596.2,0.62340834]
[1724207769612,2.3024,2596.9,2596.2,0.62340834]
[1724207769784,0.14709026,2596.8,2596.2,0.62340834]
[1724207770150,2.4552,2596.7,2596.3,0.44101887]
[1724207770681,0.14709026,2596.6,2596.3,0.44101887]
[1724207771129,2.4552,2596.7,2596.3,0.44101887]
[1724207771539,0.14711943,2596.6,2596.3,0.44101887]
[1724207772119,0.07703148,2596.5,2595.8,15.0445314]
[1724207772305,6.84047023,2597.1,2595.4,1.20677168]
[1724207772306,2.475,2596.7,2595.4,7.3085314]
[1724207772507,2.475,2596.3,2595.6,1.671]
[1724207772824,0.14718752,2596.2,2595.6,1.671]
[1724207773150,2.475,2596.1,2595.6,1.671]
[1724207773528,0.14686656,2596.0,2595.6,1.671]
[1724207773747,0.14686656,2596.0,2595.7,0.4671]
[1724207773909,2.475,2596.1,2595.7,0.4671]
[1724207774417,2.475,2596.1,2595.6,1.671]
[1724207777656,2.3239,2595.9,2595.4,7.3085314]
[1724207777871,2.3239,2595.9,2595.3,1.671]
[1724207777872,2.3239,2595.9,2595.1,15.0445314]
[1724207778013,2.3239,2595.7,2594.7,19.5785314]
[1724207778358,0.14663308,2595.6,2594.7,7.3085314]
[1724207778666,1.74803148,2595.5,2594.7,8.9795314]
[1724207778809,2.40093148,2595.4,2594.7,1.671]
[1724207779018,2.3239,2595.2,2594.7,1.671]
[1724207779432,0.14657471,2595.1,2594.7,1.671]
[1724207779766,2.3239,2595.2,2594.7,1.671]
[1724207780122,0.14657471,2595.1,2594.7,1.671]
[1724207780635,2.3239,2595.2,2594.5,7.736]
[1724207780854,0.14657471,2595.1,2594.6,1.50445314]
[1724207781238,2.3239,2595.2,2594.6,1.50445314]
[1724207781441,0.14657471,2595.1,2594.7,2.4546]
[1724207781655,2.3239,2595.6,2594.8,0.39590531]
[1724207782054,0.14424903,2595.5,2594.8,0.39590531]
[1724207782652,2.3239,2595.4,2594.8,0.39590531]
[1724207782866,2.3239,2595.4,2594.6,4.50445314]
[1724207783367,2.4081,2595.9,2594.7,2.3077]
[1724207783679,0.14437559,2595.8,2594.8,7.3085314]
[1724207783877,0.14437559,2595.8,2594.9,1.26162314]
[1724207788477,0.14437559,2595.8,2595.1,2.4461]
[1724207789764,2.325,2595.7,2594.9,1.26162314]
[1724207790123,0.1446676,2595.6,2595.0,1.25821545]
[1724207793923,2.2727,2595.5,2595.0,1.25821545]
[1724207794163,0.1446676,2595.6,2594.3,7.3085314]
[1724207794164,2.2727,2595.3,2594.3,7.3085314]
[1724207794507,0.14498884,2595.2,2594.3,7.3085314]
[1724207794706,0.14498884,2595.2,2594.4,2.35905314]
[1724207795462,0.14498884,2595.2,2594.4,5.35905314]
[1724207802159,2.3924,2595.1,2594.4,5.35905314]
[1724207802656,0.14474548,2595.0,2594.4,5.35905314]
[1724207803554,0.14474548,2595.0,2594.5,2.3383]
[1724207803754,0.14474548,2595.0,2594.6,0.76973531]
[1724207804055,2.3924,2595.1,2594.6,0.76973531]
[1724207806458,2.3924,2595.1,2594.9,1.672]
[1724207806674,0.14470654,2595.0,2594.9,1.672]
[1724207807034,2.3826,2595.3,2594.9,1.672]
[1724207807234,0.14470654,2595.2,2594.9,1.672]
[1724207807418,0.14470654,2595.2,2595.1,1.672]
[1724207807930,2.3826,2595.5,2595.1,1.672]
[1724207808128,2.3826,2595.5,2595.3,1.672]
[1724207808336,0.1445995,2595.4,2595.3,1.672]
[1724207810676,0.1445995,2595.4,2594.9,2.3383]
[1724207810837,0.1445995,2595.4,2595.0,0.23383]
[1724207812780,2.2678,2595.3,2594.8,3.0]
[1724207818731,2.2678,2595.3,2594.7,3.0]
[1724207818936,0.1446579,2595.2,2594.7,3.0]
[1724207819151,2.495,2595.1,2594.7,3.0]
[1724207819305,2.63948265,2595.1,2594.7,4.0736]
[1724207820390,2.495,2595.1,2594.7,4.0736]
[1724207821696,2.4544,2595.6,2594.7,4.0736]
[1724207821993,0.1445508,2595.5,2594.7,4.0736]
[1724207822193,2.4544,2595.4,2594.8,1.42757]
[1724207824610,0.14467734,2595.3,2594.8,1.42757]
[1724207824896,2.4544,2595.4,2594.8,1.42757]
[1724207825104,0.14467734,2595.3,2594.8,1.42757]
[1724207825296,2.4544,2595.4,2594.8,1.42757]
[1724207825531,0.14467734,2595.3,2594.9,0.442757]
[1724207825840,0.14467734,2595.3,2594.8,1.42757]
[1724207825841,2.4967,2595.2,2594.8,1.42757]
[1724207826045,2.4967,2595.2,2594.7,3.0]
[1724207827102,2.4967,2595.2,2594.7,5.4867]
[1724207828181,2.4254,2595.5,2594.7,11.50961914]
[1724207828352,2.4254,2595.5,2594.8,4.07709793]
[1724207828684,2.4254,2595.5,2594.8,2.7358665]
[1724207830541,2.4254,2595.5,2595.2,1.671]
[1724207830938,0.1449499,2595.4,2595.2,1.671]
[1724207833046,2.3761,2595.3,2595.0,1.671]
[1724207833262,2.3761,2595.3,2594.8,2.7358665]
[1724207833481,2.3761,2595.3,2594.8,4.4068665]
[1724207833753,0.14504723,2595.2,2594.8,4.4068665]
[1724207834247,2.3761,2595.3,2594.8,4.4068665]
[1724207834447,0.14504723,2595.2,2594.8,4.4068665]
[1724207834651,2.3761,2595.3,2594.9,0.74068665]
[1724207834853,0.14504723,2595.2,2594.9,0.74068665]
[1724207835050,2.3761,2595.3,2594.9,0.74068665]
[1724207835294,0.14504723,2595.2,2594.9,0.74068665]
[1724207835460,2.3761,2595.3,2594.9,0.74068665]
[1724207835669,2.62337871,2595.2,2594.6,7.3085314]
[1724207835852,2.4013,2595.2,2594.7,1.671]
[1724207836053,0.14487204,2595.1,2594.7,1.671]
[1724207836355,2.4013,2595.2,2594.7,2.56895314]
[1724207836756,0.14487204,2595.1,2594.7,2.56895314]
[1724207837075,2.4013,2595.2,2594.7,2.56895314]
[1724207837281,0.14476496,2595.1,2594.7,2.56895314]
[1724207837468,2.4013,2595.2,2594.7,2.56895314]
[1724207837867,0.14476496,2595.1,2594.7,2.56895314]
[1724207838066,2.4013,2595.2,2594.7,2.56895314]
[1724207838271,0.14476496,2595.1,2594.7,2.56895314]
[1724207838472,2.4013,2595.2,2594.7,2.56895314]
[1724207838671,0.14476496,2595.1,2594.7,2.56895314]
[1724207838878,2.4013,2595.2,2594.7,2.56895314]
[1724207839083,0.14476496,2595.1,2594.7,2.56895314]
[1724207839300,2.4013,2595.2,2594.7,2.56895314]
[1724207839487,0.14476496,2595.1,2594.7,2.56895314]
[1724207839649,2.4013,2595.2,2594.7,2.56895314]
[1724207839873,0.14476496,2595.1,2594.7,2.56895314]
[1724207840086,2.4013,2595.2,2594.7,2.56895314]
[1724207840260,0.14476496,2595.1,2594.7,2.56895314]
[1724207840488,2.4013,2595.2,2594.7,2.56895314]
[1724207840652,0.14476496,2595.1,2594.7,2.56895314]
[1724207840855,2.4013,2595.2,2594.7,2.56895314]
[1724207841054,0.14476496,2595.1,2594.7,2.56895314]
[1724207841307,2.4013,2595.2,2594.7,2.56895314]
[1724207841469,0.14476496,2595.1,2594.7,2.56895314]
[1724207841667,2.4013,2595.2,2594.7,2.56895314]
[1724207841870,0.14476496,2595.1,2594.7,2.56895314]
[1724207842096,2.4013,2595.2,2594.7,2.56895314]
[1724207842297,0.14476496,2595.1,2594.8,0.98774845]
[1724207842503,2.4013,2595.2,2594.8,0.98774845]
[1724207842731,0.14450213,2595.1,2594.7,1.671]
[1724207843137,2.4013,2595.2,2594.7,1.671]
[1724207843526,0.14450213,2595.1,2594.7,1.671]
[1724207843975,2.4013,2595.2,2594.7,1.671]
[1724207844324,0.14450213,2595.1,2594.7,1.671]
[1724207844524,0.14450213,2595.1,2594.9,1.671]
[1724207844733,2.4013,2595.2,2594.9,1.671]
[1724207847700,2.3381,2595.7,2595.1,1.671]
[1724207848005,2.3381,2595.7,2595.4,1.671]
[1724207848006,0.14456053,2595.6,2595.4,1.671]
[1724207848538,2.3381,2595.7,2595.4,1.671]
[1724207853900,7.27,2596.1,2595.4,1.671]
[1724207854189,2.43127903,2596.0,2595.6,1.671]
[1724207855493,2.43127903,2596.0,2595.4,1.671]
[1724207856485,2.262,2595.9,2595.4,1.671]
[1724207856652,0.14553383,2595.8,2595.2,1.671]
[1724207856855,2.262,2595.7,2595.2,1.671]
[1724207857074,0.14553383,2595.6,2595.2,1.671]
[1724207857274,0.14553383,2595.6,2595.2,2.1381]
[1724207865105,0.14553383,2595.6,2595.4,1.671]
[1724207865902,2.4143,2595.9,2595.4,1.671]
[1724207866209,0.14546571,2595.8,2595.4,1.671]
[1724207867871,0.14546571,2595.8,2595.6,1.671]
[1724207868281,2.3817,2596.1,2595.6,1.671]
[1724207868611,0.14561165,2596.0,2595.9,1.671]
[1724207868993,2.3817,2596.4,2595.9,1.671]
[1724207869197,0.14561165,2596.0,2595.6,3.0]
[1724207869397,3.3437739,2597.3,2595.7,1.671]
[1724207869398,2.3817,2595.9,2595.7,1.671]
[1724207869913,0.14561165,2595.8,2595.7,1.671]
[1724207871592,2.3817,2595.9,2595.7,1.671]
[1724207874679,2.2732,2596.4,2595.7,1.671]
[1724207874887,0.14561165,2596.3,2595.7,1.671]
[1724207875325,0.14561165,2596.3,2595.9,1.671]
[1724207882759,0.14561165,2596.3,2595.6,9.6401314]
[1724207882963,2.3101,2596.2,2595.6,7.3085314]
[1724207883266,2.3101,2596.2,2595.7,1.671]
[1724207885124,2.3101,2596.2,2595.9,1.671]
[1724207885441,0.14638998,2596.1,2595.9,1.671]
[1724207886942,2.4413,2596.4,2595.9,1.671]
[1724207887170,2.4413,2596.4,2595.9,2.06965]
[1724207887171,0.14640943,2596.3,2595.9,2.06965]
[1724207887640,0.14640943,2596.3,2595.9,1.671]
[1724207899011,2.3657,2596.2,2595.9,1.671]
[1724207899193,2.3657,2596.2,2595.6,7.3085314]
[1724207899541,2.3657,2596.0,2595.6,8.9795314]
[1724207899835,2.3657,2596.0,2595.6,7.3085314]
[1724207900499,2.3657,2595.8,2595.6,7.3085314]
[1724207902311,2.3657,2595.8,2595.6,8.9795314]
[1724207902526,2.3657,2595.8,2595.6,9.87748454]
[1724207903322,1.671,2596.5,2595.6,9.87748454]
[1724207903323,2.3657,2596.4,2595.6,9.87748454]
[1724207903668,2.3657,2596.2,2595.6,8.9795314]
[1724207904030,2.3657,2596.2,2595.8,1.671]
[1724207904370,0.14602029,2596.1,2595.8,1.671]
[1724207904784,2.3657,2596.2,2595.8,1.671]
[1724207904926,2.3657,2596.2,2595.8,2.56895314]
[1724207905122,0.14602029,2596.1,2595.8,2.56895314]
[1724207905360,2.3657,2596.2,2595.8,2.56895314]
[1724207905830,0.14602029,2596.1,2595.8,1.671]
[1724207906025,2.3468,2596.0,2595.8,1.671]
[1724207906642,0.14608839,2595.9,2595.8,1.671]
[1724207907054,2.3468,2596.0,2595.8,1.671]
[1724207907441,0.14608839,2595.9,2595.8,1.671]
[1724207907873,2.3468,2596.0,2595.8,1.671]
[1724207908171,0.14608839,2595.9,2595.8,1.671]
[1724207908537,2.3468,2596.0,2595.6,8.9795314]
[1724207908750,2.3468,2596.0,2595.6,9.87748454]
[1724207910530,2.3468,2596.0,2595.6,2.56895314]
[1724207910898,2.3468,2596.0,2595.6,1.671]
[1724207917180,1.671,2596.5,2595.4,3.0]
[1724207917181,2.4258,2596.4,2595.8,1.671]
[1724207917546,0.14623433,2596.3,2595.8,1.671]
[1724207924325,2.3422,2596.2,2595.8,1.671]
[1724207924669,2.3422,2596.0,2595.8,1.671]
[1724207925094,2.3422,2596.0,2595.6,1.671]
[1724207925309,0.14629269,2595.9,2595.6,1.671]
[1724207925513,2.3422,2596.0,2595.6,1.671]
[1724207927581,2.3422,2596.0,2595.4,3.0]
[1724207927927,2.3422,2596.0,2595.6,1.671]
[1724207928821,0.14629269,2595.9,2595.6,1.671]
[1724207929223,0.14629269,2595.9,2595.8,1.671]
[1724207931177,2.3054,2596.3,2595.8,2.08632]
[1724207931381,0.14621486,2596.2,2596.1,1.671]
[1724207931779,2.3054,2596.3,2596.1,1.671]
[1724207931985,0.14621486,2596.2,2596.1,1.671]
[1724207932523,2.3054,2596.3,2596.1,1.671]
[1724207932728,0.14621486,2596.2,2596.1,1.671]
[1724207933082,2.3054,2596.3,2596.1,1.671]
[1724207933278,0.14621486,2596.2,2596.1,1.671]
[1724207933705,2.3054,2596.3,2596.1,1.671]
[1724207933905,0.14621486,2596.2,2596.1,1.671]
[1724207934284,2.3054,2596.3,2596.1,1.671]
[1724207934484,0.14621486,2596.2,2596.1,1.671]
[1724207934893,2.3054,2596.3,2596.1,1.671]
[1724207935092,0.14621486,2596.2,2596.1,1.671]
[1724207935523,2.3054,2596.3,2596.1,1.671]
[1724207935692,0.14621486,2596.2,2595.9,1.671]
[1724207935892,2.2584,2596.1,2595.9,1.671]
[1724207936094,2.2584,2596.1,2595.7,8.9795314]
[1724207936295,0.14621486,2596.0,2595.7,9.87748454]
[1724207936504,2.2584,2596.1,2595.7,9.87748454]